bitfinex-derivatives/quotes_BTCF0:USTF0_20250711
["timestamp","ask_amount","ask_price","bid_price","bid_amount"]
[1752246137323,0.1695534,117930.0,117920.0,1.72061558]
[1752246138117,0.1695534,117930.0,117920.0,1.2027335]
[1752246138721,0.1695534,117930.0,117920.0,1.2037335]
[1752246140319,0.1695534,117930.0,117920.0,1.18089099]
[1752246141722,0.1695534,117930.0,117920.0,1.14889099]
[1752246142023,0.2329534,117930.0,117920.0,1.14889099]
[1752246142726,0.2329534,117930.0,117920.0,1.11589099]
[1752246144222,0.77367799,117930.0,117920.0,1.11589099]
[1752246144831,0.2329534,117930.0,117920.0,1.11589099]
[1752246145428,0.2339534,117930.0,117920.0,1.11489099]
[1752246147032,0.2339534,117930.0,117920.0,1.65461558]
[1752246147329,0.2349534,117930.0,117920.0,1.17709099]
[1752246148225,0.2048534,117930.0,117920.0,1.17709099]
[1752246148420,0.1715534,117930.0,117920.0,1.17709099]
[1752246150130,0.1705534,117930.0,117920.0,1.17709099]
[1752246150426,0.1695534,117930.0,117920.0,1.17709099]
[1752246152732,0.2015534,117930.0,117920.0,1.14529099]
[1752246152932,0.77467799,117930.0,117920.0,0.94432329]
[1752246153130,0.77467799,117930.0,117920.0,1.11389099]
[1752246153430,0.77467799,117930.0,117920.0,1.0891477]
[1752246154034,1e-07,117930.0,117920.0,1.65491008]
[1752246154328,0.1695534,117930.0,117920.0,1.17588549]
[1752246154633,0.1695534,117930.0,117920.0,1.14458549]
[1752246154830,0.2336534,117930.0,117920.0,1.14458549]
[1752246155330,0.2346534,117930.0,117920.0,1.14458549]
[1752246156531,0.2336534,117930.0,117920.0,1.14458549]
[1752246156731,0.2326534,117930.0,117920.0,1.14458549]
[1752246160432,0.1695534,117930.0,117920.0,1.63792623]
[1752246161031,1e-07,117930.0,117920.0,1.63792623]
[1752246161235,0.1695534,117930.0,117920.0,1.63792623]
[1752246162338,1e-07,117930.0,117920.0,1.63792623]
[1752246162538,0.1695534,117930.0,117920.0,1.63792623]
[1752246163842,0.1695534,117930.0,117920.0,1.63892623]
[1752246164043,0.1695534,117930.0,117920.0,1.17838549]
[1752246164244,0.1695534,117930.0,117920.0,1.63992623]
[1752246166540,0.1695534,117930.0,117920.0,1.00881779]
[1752246166745,0.63109414,117930.0,117920.0,1.26059779]
[1752246166944,0.66219414,117930.0,117920.0,1.43016549]
[1752246167247,0.69439414,117930.0,117920.0,1.43016549]
[1752246167935,0.1705534,117930.0,117920.0,1.89070623]
[1752246168142,0.1705534,117930.0,117920.0,1.95450623]
[1752246168645,0.1705534,117930.0,117920.0,1.95434623]
[1752246170453,0.1695534,117930.0,117920.0,1.95434623]
[1752246170646,0.1695534,117930.0,117920.0,1.49280549]
[1752246171548,0.1705534,117930.0,117920.0,1.49180549]
[1752246171748,0.2034534,117930.0,117920.0,1.49180549]
[1752246172350,0.2024534,117930.0,117920.0,1.49180549]
[1752246172947,0.2024534,117930.0,117920.0,1.49190549]
[1752246175754,0.1695534,117930.0,117920.0,1.49190549]
[1752246176252,0.1695534,117930.0,117920.0,2.03271222]
[1752246177143,1e-07,117930.0,117920.0,2.03271222]
[1752246177349,0.1695534,117930.0,117920.0,2.00767443]
[1752246177653,0.1695534,117930.0,117920.0,1.49166025]
[1752246177846,0.1695534,117930.0,117920.0,2.03246698]
[1752246178948,0.1695534,117930.0,117920.0,1.49166025]
[1752246179148,0.1695534,117930.0,117920.0,2.03246698]
[1752246179347,1e-07,117930.0,117920.0,2.03246698]
[1752246181253,0.1695534,117930.0,117920.0,2.03246698]
[1752246181953,1e-07,117930.0,117920.0,2.03346698]
[1752246182158,1e-07,117930.0,117920.0,2.03446698]
[1752246183051,1e-07,117930.0,117920.0,2.05733916]
[1752246183855,0.1695534,117930.0,117920.0,2.05733916]
[1752246184854,0.1695534,117930.0,117920.0,1.51653243]
[1752246185255,0.1695534,117930.0,117920.0,1.49366025]
[1752246185662,0.1695534,117930.0,117920.0,1.48413243]
[1752246185955,0.2304534,117930.0,117920.0,1.46126025]
[1752246186156,0.2304534,117930.0,117920.0,1.42986025]
[1752246186754,0.2304534,117930.0,117920.0,1.42886025]
[1752246187552,0.2304534,117930.0,117920.0,1.42786025]
[1752246192973,0.69201547,117930.0,117920.0,1.42786025]
[1752246193260,1e-07,117930.0,117920.0,1.88942232]
[1752246193464,1e-07,117930.0,117920.0,2.43725657]
[1752246193655,1e-07,117930.0,117920.0,1.9756945]
[1752246194056,1e-07,117930.0,117920.0,2.43725657]
[1752246194362,1e-07,117930.0,117920.0,2.41438439]
[1752246194558,1e-07,117930.0,117920.0,2.43725657]
[1752246195255,1e-07,117930.0,117920.0,3.35685657]
[1752246195558,1e-07,117930.0,117920.0,3.35785657]
[1752246196259,1e-07,117930.0,117920.0,3.10885657]
[1752246197065,1e-07,117930.0,117920.0,3.11644107]
[1752246198568,1e-07,117930.0,117920.0,3.13166941]
[1752246200169,1e-07,117930.0,117920.0,3.12743115]
[1752246202368,1e-07,117930.0,117920.0,3.15786885]
[1752246202768,1e-07,117930.0,117920.0,3.12743115]
[1752246206666,1e-07,117930.0,117920.0,3.15784966]
[1752246207166,1e-07,117930.0,117920.0,3.11216464]
[1752246209769,1e-07,117930.0,117920.0,2.98824966]
[1752246211668,1e-07,117930.0,117920.0,2.95783115]
[1752246212465,0.002,117970.0,117950.0,0.92312414]
[1752246212764,0.002,117970.0,117960.0,2.32019424]
[1752246212967,0.002,117970.0,117960.0,1.91652472]
[1752246213367,0.002,117970.0,117960.0,2.41841561]
[1752246213566,0.0306,117990.0,117980.0,0.1694814]
[1752246213763,0.062,117990.0,117980.0,1.85844347]
[1752246213970,0.062,117990.0,117980.0,1.85444347]
[1752246214471,0.231467,117990.0,117980.0,1.85444347]
[1752246214670,0.238467,117990.0,117980.0,1.85444347]
[1752246215669,0.238467,117990.0,117980.0,1.85144347]
[1752246216773,0.069,117990.0,117980.0,1.85144347]
[1752246216974,0.069,117990.0,117980.0,1.87604309]
[1752246217169,0.074,117990.0,117980.0,1.87604309]
[1752246217669,0.0426,117990.0,117980.0,1.87604309]
[1752246217974,0.012,117990.0,117980.0,1.90784309]
[1752246218170,0.012,117990.0,117980.0,1.93894309]
[1752246218374,0.012,117990.0,117980.0,2.00696965]
[1752246218674,0.005,117990.0,117980.0,2.50696965]
[1752246219077,0.0638,118000.0,117990.0,0.168467]
[1752246219263,0.0638,118000.0,117990.0,0.63002907]
[1752246219666,0.002,118010.0,118000.0,0.1694527]
[1752246219864,0.002,118010.0,118000.0,2.31905684]
[1752246220065,0.002,118010.0,118000.0,2.38195684]
[1752246220266,0.002,118010.0,118000.0,3.88195684]
[1752246220472,0.002,118010.0,118000.0,3.89803424]
[1752246220668,0.066,118020.0,118010.0,0.1694383]
[1752246220872,0.2137383,118050.0,118040.0,0.1693952]
[1752246220873,0.2560862,118050.0,118040.0,0.1693952]
[1752246221073,0.2889862,118050.0,118040.0,1.92683116]
[1752246221268,0.2889862,118050.0,118040.0,1.46526909]
[1752246221474,0.0349,118050.0,118040.0,1.92683116]
[1752246221675,0.0349,118050.0,118040.0,1.92483116]
[1752246222378,0.0696,118050.0,118040.0,1.92283116]
[1752246222877,0.0696,118050.0,118040.0,2.00086331]
[1752246223178,0.0716,118050.0,118040.0,2.00086331]
[1752246223979,0.2409809,118050.0,118040.0,2.00096331]
[1752246224279,0.2409809,118050.0,118040.0,1.46136909]
[1752246224473,1.19999912,118050.0,118040.0,0.0001]
[1752246224678,0.1693953,118040.0,118030.0,0.1694079]
[1752246224977,0.0304,118040.0,118030.0,0.1694079]
[1752246225174,0.0304,118040.0,118030.0,0.70900212]
[1752246225379,0.1997953,118040.0,118030.0,1.32172212]
[1752246225770,0.1997953,118040.0,118030.0,0.7821279]
[1752246225972,0.1997953,118040.0,118030.0,0.7831279]
[1752246226783,0.73938952,118040.0,118030.0,0.7831279]
[1752246226984,0.1997953,118040.0,118030.0,0.7831279]
[1752246227882,0.2307953,118040.0,118030.0,0.7831279]
[1752246228985,0.2307953,118040.0,118030.0,0.7832279]
[1752246229884,0.77038952,118040.0,118030.0,0.1705079]
[1752246230284,0.93982952,118040.0,118030.0,0.0011]
[1752246230894,1.18982952,118040.0,118030.0,0.0011]
[1752246231295,0.6502353,118040.0,118030.0,0.0011]
[1752246231493,0.1694096,118030.0,118020.0,0.2117784]
[1752246231693,0.169424,118020.0,118010.0,0.8666455]
[1752246231894,0.199724,118020.0,118010.0,0.8666455]
[1752246232097,0.90879022,118020.0,118010.0,0.1695277]
[1752246232797,0.73931822,118020.0,118010.0,0.1695277]
[1752246233194,0.199724,118020.0,118010.0,0.1695277]
[1752246233592,0.0303,118020.0,118010.0,0.1695277]
[1752246233896,0.0303,118020.0,118010.0,1.32140192]
[1752246234089,0.0303,118020.0,118010.0,0.71012192]
[1752246234400,0.0303,118020.0,118010.0,0.7827677]
[1752246234594,0.2541062,118040.0,118030.0,0.1694096]
[1752246234795,0.3148062,118040.0,118030.0,0.1694096]
[1752246237498,0.1694096,118030.0,118020.0,0.2541196]
[1752246237697,0.2303096,118030.0,118020.0,0.2541196]
[1752246238596,0.2303096,118030.0,118020.0,0.2551196]
[1752246239691,0.2303096,118030.0,118020.0,0.2561196]
[1752246240103,0.76990382,118030.0,118020.0,0.783464]
[1752246240304,0.76990382,118030.0,118020.0,0.002]
[1752246240602,0.76990382,118030.0,118020.0,0.171424]
[1752246240801,0.2303096,118030.0,118020.0,0.171424]
[1752246243296,0.76990382,118030.0,118020.0,0.171424]
[1752246243496,0.76990382,118030.0,118020.0,0.002]
[1752246244405,0.76990382,118030.0,118020.0,0.171424]
[1752246244600,1.80123982,118030.0,118020.0,0.002]
[1752246244802,0.169424,118020.0,118010.0,0.0001]
[1752246245005,0.73951822,118020.0,118010.0,0.0001]
[1752246245201,0.1694383,118010.0,118000.0,0.00169484]
[1752246245401,1.35133252,118010.0,118000.0,0.02649799]
[1752246245603,1.77082052,118010.0,118000.0,0.00169484]
[1752246245797,0.169467,117990.0,117980.0,0.02290614]
[1752246246003,0.70906122,117990.0,117980.0,0.02481961]
[1752246246205,0.74206122,117990.0,117980.0,0.02481961]
[1752246246405,0.74206122,117990.0,117980.0,0.19430101]
[1752246248607,0.21077241,117990.0,117980.0,0.19730101]
[1752246249003,0.24277241,117990.0,117980.0,0.19730101]
[1752246249406,0.24277241,117990.0,117980.0,0.20030101]
[1752246252206,0.36457411,118000.0,117990.0,0.169467]
[1752246252402,0.42657411,118000.0,117990.0,0.169467]
[1752246253313,0.169467,117990.0,117980.0,0.3251037]
[1752246254508,0.169467,117990.0,117980.0,0.3221037]
[1752246255306,0.169467,117990.0,117980.0,0.2797358]
[1752246255506,0.201367,117990.0,117980.0,0.2797358]
[1752246256104,0.201367,117990.0,117980.0,0.2827358]
[1752246256310,0.201367,117990.0,117980.0,0.2179358]
[1752246256511,0.77366122,117990.0,117980.0,0.0061]
[1752246256912,0.234067,117990.0,117980.0,0.0061]
[1752246257113,0.77366122,117990.0,117980.0,0.1755814]
[1752246257317,0.0646,117990.0,117980.0,0.1755814]
[1752246257518,0.234067,117990.0,117980.0,0.1755814]
[1752246258514,0.77366122,117990.0,117980.0,0.1755814]
[1752246259018,0.60419422,117990.0,117980.0,0.1755814]
[1752246259219,0.33076623,118000.0,117990.0,0.169467]
[1752246259416,0.35170073,118000.0,117990.0,0.169467]
[1752246259716,0.22460783,118000.0,117980.0,0.3241053]
[1752246260016,0.169467,117990.0,117980.0,0.3241053]
[1752246260346,0.169467,117990.0,117980.0,0.3211053]
[1752246261315,0.169467,117990.0,117980.0,0.3181053]
[1752246262218,0.169467,117990.0,117980.0,0.3211053]
[1752246263816,0.169467,117990.0,117980.0,0.2787374]
[1752246264121,0.201067,117990.0,117980.0,0.2462374]
[1752246264312,0.231567,117990.0,117980.0,0.2462374]
[1752246264918,0.231567,117990.0,117980.0,0.2809374]
[1752246265529,0.231567,117990.0,117980.0,0.2819374]
[1752246265713,0.231567,117990.0,117980.0,0.2068702]
[1752246267420,0.201067,117990.0,117980.0,0.2395702]
[1752246268019,0.201067,117990.0,117980.0,0.2365702]
[1752246268215,0.201067,117990.0,117980.0,0.2345702]
[1752246268417,0.231467,117990.0,117980.0,0.2345702]
[1752246268817,0.231467,117990.0,117980.0,0.2355702]
[1752246269021,0.69256028,117990.0,117980.0,0.2355702]
[1752246269524,0.52309328,117990.0,117980.0,0.2355702]
[1752246269822,0.169467,117990.0,117980.0,0.2355702]
[1752246272818,0.63056028,117990.0,117980.0,0.2355702]
[1752246273224,0.07812306,118010.0,118000.0,0.1694526]
[1752246273420,0.3170666,118010.0,118000.0,0.46109328]
[1752246273613,0.1694527,118000.0,117990.0,1.28428]
[1752246273820,0.1694527,118000.0,117990.0,1.453747]
[1752246274314,0.63054598,118000.0,117990.0,1.453747]
[1752246274518,0.66314598,118000.0,117990.0,1.453747]
[1752246274713,0.66314598,118000.0,117990.0,0.0626]
[1752246274914,0.169467,117990.0,117980.0,0.8226996]
[1752246275224,0.69356028,117990.0,117980.0,0.61086]
[1752246275416,0.69356028,117990.0,117980.0,0.0001]
[1752246275613,0.063,117990.0,117980.0,0.1695814]
[1752246275831,0.0942519,118000.0,117980.0,0.63067468]
[1752246276117,0.0942519,118000.0,117990.0,0.169467]
[1752246276118,0.296316,118000.0,117990.0,0.169467]
[1752246276427,0.0609038,118000.0,117990.0,1.88482028]
[1752246276623,0.2861728,118010.0,118000.0,0.1694527]
[1752246276824,0.34712297,118010.0,118000.0,0.2023527]
[1752246277024,0.3191728,118010.0,118000.0,0.2023527]
[1752246277220,0.0629517,118010.0,118000.0,0.66344598]
[1752246277426,0.0629517,118010.0,118000.0,0.69364598]
[1752246278327,0.002,118010.0,118000.0,0.69364598]
[1752246278526,0.002,118010.0,118000.0,0.2325527]
[1752246278727,0.0629517,118010.0,118000.0,0.69364598]
[1752246279027,0.0629517,118010.0,118000.0,0.76375258]
[1752246279227,0.0639517,118010.0,118000.0,0.76375258]
[1752246279924,0.3638,118010.0,118000.0,1.22484586]
[1752246280723,0.3628,118010.0,118000.0,0.76375258]
[1752246281028,0.3628,118010.0,118000.0,0.76475258]
[1752246282223,0.3628,118010.0,118000.0,1.22584586]
[1752246282424,0.3628,118010.0,118000.0,0.76475258]
[1752246283337,0.5322383,118010.0,118000.0,0.3036593]
[1752246283527,0.5322383,118010.0,118000.0,0.76475258]
[1752246284131,0.5322383,118010.0,118000.0,0.76775258]
[1752246285028,0.5322383,118010.0,118000.0,0.76875258]
[1752246285226,0.5322383,118010.0,118000.0,0.3076593]
[1752246285726,0.5322383,118010.0,118000.0,0.2754593]
[1752246285922,1.02613158,118010.0,118000.0,0.2435593]
[1752246286130,0.5983383,118010.0,118000.0,0.2435593]
[1752246286531,0.5983383,118010.0,118000.0,0.2425593]
[1752246286736,0.5983383,118010.0,118000.0,0.2435593]
[1752246286928,1.05943158,118010.0,118000.0,0.002]
[1752246287126,1.05943158,118010.0,118000.0,0.1714527]
[1752246287434,1.05943158,118010.0,118000.0,0.002]
[1752246288134,1.83899958,118010.0,118000.0,0.002]
[1752246288531,1.3779063,118010.0,118000.0,0.002]
[1752246288832,1.97921436,118010.0,118000.0,0.002]
[1752246289136,1.99438572,118010.0,118000.0,0.002]
[1752246289536,1.91822266,118010.0,118000.0,0.002]
[1752246290036,1.97906646,118010.0,118000.0,0.002]
[1752246291243,1.91822266,118010.0,118000.0,0.002]
[1752246291737,1.97906741,118010.0,118000.0,0.002]
[1752246292639,1.91822266,118010.0,118000.0,0.002]
[1752246293035,1.97906855,118010.0,118000.0,0.002]
[1752246293833,1.36902855,118010.0,118000.0,0.002]
[1752246294040,1.97890855,118010.0,118000.0,0.002]
[1752246296734,2.24418572,118010.0,118000.0,0.002]
[1752246298237,2.24406572,118010.0,118000.0,0.002]
[1752246298840,1.99406572,118010.0,118000.0,0.002]
[1752246300544,1.45370936,118010.0,118000.0,0.002]
[1752246300739,1.99406572,118010.0,118000.0,0.002]
[1752246300943,0.1694957,117970.0,117960.0,0.00169542]
[1752246301149,1.43145206,117970.0,117960.0,0.00169542]
[1752246301440,1.49465206,117970.0,117960.0,0.00169542]
[1752246302244,1.49465206,117970.0,117960.0,0.00669542]
[1752246302439,1.49465206,117970.0,117960.0,0.00969542]
[1752246302644,1.72504778,117970.0,117960.0,0.00969542]
[1752246303749,1.66419606,117970.0,117960.0,0.00969542]
[1752246303950,1.72504778,117970.0,117960.0,0.00969542]
[1752246305048,1.72504778,117970.0,117960.0,0.00469542]
[1752246305245,1.01514742,117970.0,117960.0,0.00669542]
[1752246305436,1.5637757,117970.0,117960.0,0.00669542]
[1752246305943,2.16498378,117970.0,117960.0,0.00669542]
[1752246306336,1.5637757,117970.0,117960.0,0.00669542]
[1752246306737,2.10413206,117970.0,117960.0,0.00669542]
[1752246306940,2.1713285,117970.0,117960.0,0.00669542]
[1752246309439,0.1695388,117940.0,117930.0,0.32177239]
[1752246309640,0.8911388,117940.0,117930.0,0.2743304]
[1752246310451,0.7216,117940.0,117930.0,0.81468676]
[1752246310947,0.7216,117940.0,117930.0,0.82068676]
[1752246311245,0.7216,117940.0,117930.0,0.88967002]
[1752246311436,0.8911388,117940.0,117930.0,0.88967002]
[1752246311638,0.8911388,117940.0,117930.0,0.89367002]
[1752246311840,0.8911388,117940.0,117930.0,0.35331366]
[1752246312545,0.8911388,117940.0,117930.0,0.89367002]
[1752246312943,0.8911388,117940.0,117930.0,1.50295002]
[1752246313345,0.8911388,117940.0,117930.0,0.96259366]
[1752246313547,0.8911388,117940.0,117930.0,1.50295002]
[1752246314150,0.8911388,117940.0,117930.0,1.51896441]
[1752246314346,0.8911388,117940.0,117930.0,0.97860805]
[1752246314546,0.8911388,117940.0,117930.0,1.51896441]
[1752246315655,0.8911388,117940.0,117930.0,0.97860805]
[1752246317356,0.8911388,117940.0,117930.0,1.51896441]
[1752246319551,0.7216,117940.0,117930.0,1.51896441]
[1752246319756,0.8911387,117940.0,117930.0,1.51896441]
[1752246320754,0.8911387,117940.0,117930.0,0.97860805]
[1752246322557,0.8911387,117940.0,117930.0,1.51896441]
[1752246323357,0.8911387,117940.0,117930.0,0.97860805]
[1752246324561,1.43149506,117940.0,117930.0,0.01]
[1752246324770,0.9544387,117940.0,117930.0,0.01]
[1752246325557,1.49479506,117940.0,117930.0,0.008]
[1752246325762,1.49479506,117940.0,117930.0,0.004]
[1752246326154,1.55564678,117940.0,117930.0,0.004]
[1752246326353,1.49479506,117940.0,117930.0,0.002]
[1752246326554,2.16456678,117940.0,117930.0,0.002]
[1752246326759,0.1695531,117930.0,117920.0,0.17136339]
[1752246326957,1.13420946,117930.0,117920.0,0.00179599]
[1752246327357,0.5938531,117930.0,117920.0,0.00179599]
[1752246327763,1.13420946,117930.0,117920.0,0.00179599]
[1752246327963,0.5938531,117930.0,117920.0,0.00179599]
[1752246328862,0.5938531,117930.0,117920.0,0.00279599]
[1752246329657,1.13420946,117930.0,117920.0,0.00279599]
[1752246330057,1.74316946,117930.0,117920.0,0.00279599]
[1752246330464,1.74316946,117930.0,117920.0,0.00179599]
[1752246330660,1.13420946,117930.0,117920.0,0.00179599]
[1752246330865,0.5303531,117930.0,117920.0,0.71171985]
[1752246331065,0.5303531,117930.0,117920.0,1.95999985]
[1752246331066,0.3608,117930.0,117920.0,1.95999985]
[1752246331268,0.3608,117930.0,117920.0,2.01444425]
[1752246331464,0.5303531,117930.0,117920.0,2.01544425]
[1752246332361,0.5303531,117930.0,117920.0,2.01444425]
[1752246332767,0.5303531,117930.0,117920.0,2.01544425]
[1752246333364,0.5303531,117930.0,117920.0,2.01644425]
[1752246333564,0.5303531,117930.0,117920.0,1.99339985]
[1752246333764,0.5303531,117930.0,117920.0,2.01640874]
[1752246336265,0.5303531,117930.0,117920.0,1.99339985]
[1752246336465,0.3608,117930.0,117920.0,1.99339985]
[1752246337062,0.5303531,117930.0,117920.0,1.99339985]
[1752246337266,0.3608,117930.0,117920.0,1.99339985]
[1752246340975,0.3608,117930.0,117920.0,1.45304349]
[1752246341170,0.3608,117930.0,117920.0,1.99339985]
[1752246343271,0.3608,117930.0,117920.0,2.16299985]
[1752246343476,0.35210458,117930.0,117920.0,2.91299985]
[1752246343680,0.3608,117940.0,117930.0,0.1695531]
[1752246343879,0.3608,117940.0,117930.0,0.77360946]
[1752246344179,0.3608,117950.0,117940.0,0.1695387]
[1752246344379,0.3608,117950.0,117940.0,1.99123506]
[1752246345375,0.3608,117950.0,117940.0,2.49123506]
[1752246345578,0.5303243,117950.0,117940.0,0.75604484]
[1752246345771,0.5303243,117950.0,117940.0,1.36480484]
[1752246345772,0.8911243,117950.0,117940.0,1.36480484]
[1752246346077,1.49508066,117950.0,117940.0,0.5]
[1752246346474,0.4455724,117940.0,117920.0,3e-08]
[1752246346672,0.1695675,117920.0,117910.0,0.03040819]
[1752246346981,0.1695819,117910.0,117900.0,0.19999669]
[1752246347176,0.1696106,117890.0,117880.0,0.04738159]
[1752246347375,1.43156696,117890.0,117880.0,0.06064078]
[1752246347578,1.49696696,117890.0,117880.0,0.09110292]
[1752246347775,1.49696696,117890.0,117880.0,0.0454179]
[1752246347978,1.49696696,117890.0,117880.0,0.01495576]
[1752246348181,1.66662296,117890.0,117880.0,0.03811012]
[1752246348681,1.66662296,117890.0,117880.0,0.02485093]
[1752246349172,1.50566267,117890.0,117880.0,0.02485093]
[1752246349374,2.14546267,117890.0,117880.0,0.02485093]
[1752246349583,0.9566106,117890.0,117880.0,0.19442093]
[1752246350183,0.9566106,117890.0,117880.0,0.19742093]
[1752246350479,1.49696696,117890.0,117880.0,0.19742093]
[1752246350777,1.49696696,117890.0,117880.0,0.02485093]
[1752246351080,2.13600696,117890.0,117880.0,0.00169657]
[1752246351280,0.169625,117880.0,117870.0,0.0001]
[1752246351473,1.13448136,117880.0,117870.0,0.0001]
[1752246352081,0.1696682,117850.0,117840.0,0.04748216]
[1752246352278,1.44031432,117850.0,117840.0,0.23001159]
[1752246352478,1.47201432,117850.0,117840.0,0.23001159]
[1752246352678,1.47201432,117850.0,117840.0,0.21705216]
[1752246353577,1.47201432,117850.0,117840.0,0.17136714]
[1752246354681,1.47201432,117850.0,117840.0,0.34304964]
[1752246355076,0.7216,117850.0,117840.0,0.17347964]
[1752246355375,0.7216,117850.0,117840.0,0.947106]
[1752246355677,0.3608,117850.0,117840.0,1.18467928]
[1752246355878,0.3608,117860.0,117850.0,0.2969138]
[1752246356085,0.3608,117860.0,117850.0,1.53597016]
[1752246356278,0.3608,117860.0,117850.0,1.70554016]
[1752246356485,0.3608,117860.0,117850.0,1.1651838]
[1752246356683,0.3608,117860.0,117850.0,1.70554016]
[1752246356889,0.3608,117860.0,117850.0,2.20554016]
[1752246357085,0.5304537,117860.0,117850.0,1.6237672]
[1752246357382,0.5304537,117860.0,117850.0,1.5086381]
[1752246357584,0.5930537,117860.0,117850.0,0.8706381]
[1752246358284,0.5930537,117860.0,117850.0,0.3716381]
[1752246358487,1.13341006,117860.0,117850.0,0.17157]
[1752246359282,1.13341006,117860.0,117850.0,0.002]
[1752246360088,0.1696681,117850.0,117840.0,0.00179714]
[1752246360283,1.13592446,117850.0,117840.0,0.17136714]
[1752246360481,1.77380446,117850.0,117840.0,0.17136714]
[1752246360676,1.13592446,117850.0,117840.0,0.34104964]
[1752246360880,0.5955681,117850.0,117840.0,0.34104964]
[1752246361084,0.5955681,117850.0,117840.0,0.17147964]
[1752246361283,0.5955681,117850.0,117840.0,0.34104964]
[1752246361479,0.5955681,117850.0,117840.0,0.34304964]
[1752246362489,0.5955681,117850.0,117840.0,0.34404964]
[1752246362688,0.5955681,117850.0,117840.0,0.17436714]
[1752246363089,0.5955681,117850.0,117840.0,0.34404964]
[1752246363290,0.5955681,117850.0,117840.0,0.17436714]
[1752246363788,1.13592446,117850.0,117840.0,0.17436714]
[1752246363985,1.13592446,117850.0,117840.0,0.03873914]
[1752246364792,0.5955681,117850.0,117840.0,0.03873914]
[1752246364982,1.2332081,117850.0,117840.0,0.17436714]
[1752246365688,1.77356446,117850.0,117840.0,0.17436714]
[1752246366594,1.77356446,117850.0,117840.0,0.00479714]
[1752246367882,1.2332081,117850.0,117840.0,0.17447954]
[1752246368093,0.5955681,117850.0,117840.0,0.34404954]
[1752246368485,0.5955681,117850.0,117840.0,0.37494954]
[1752246368891,0.5955681,117850.0,117840.0,0.20526714]
[1752246369489,1.13592446,117850.0,117840.0,0.17436714]
[1752246369882,1.13592446,117850.0,117840.0,0.00479714]
[1752246370084,1.13592446,117850.0,117840.0,0.03873914]
[1752246370284,0.5955681,117850.0,117840.0,0.00479714]
[1752246370487,1.2333281,117850.0,117840.0,0.17436714]
[1752246370685,0.5955681,117850.0,117840.0,0.34404964]
[1752246370890,0.5955681,117850.0,117840.0,0.20516714]
[1752246372093,0.5955681,117850.0,117840.0,0.17436714]
[1752246372294,0.1697257,117820.0,117810.0,0.1697206]
[1752246372599,0.1697257,117810.0,117800.0,0.21396052]
[1752246372793,0.5305257,117810.0,117800.0,0.06389772]
[1752246372998,0.5305257,117810.0,117800.0,0.23346772]
[1752246373501,0.5305257,117810.0,117800.0,0.20216772]
[1752246373694,1.11057594,117810.0,117800.0,0.17136772]
[1752246373994,1.14197594,117810.0,117800.0,0.17136772]
[1752246374188,0.60161958,117810.0,117800.0,0.00179772]
[1752246374395,1.14197594,117810.0,117800.0,0.00679772]
[1752246374790,0.60161958,117810.0,117800.0,0.00679772]
[1752246374992,1.31175194,117810.0,117800.0,0.00679772]
[1752246375193,0.0424354,117800.0,117760.0,0.2141351]
[1752246375496,0.0424354,117800.0,117770.0,0.23137]
[1752246375497,0.75257036,117780.0,117770.0,0.23137]
[1752246375797,0.933814,117780.0,117770.0,0.24413297]
[1752246375998,0.964214,117780.0,117770.0,0.24413297]
[1752246376197,1.53647036,117780.0,117770.0,0.04446297]
[1752246376501,0.1697833,117770.0,117760.0,0.0319983]
[1752246376695,1.10133966,117770.0,117760.0,0.2343683]
[1752246377095,1.10990764,117770.0,117760.0,0.41726142]
[1752246377301,0.56955128,117770.0,117760.0,0.41726142]
[1752246377595,0.58680156,117770.0,117760.0,0.07789372]
[1752246377795,0.58680156,117770.0,117760.0,0.38916142]
[1752246378098,0.58680156,117770.0,117760.0,0.2382683]
[1752246378299,1.12715792,117770.0,117760.0,0.2062683]
[1752246378490,0.61870156,117770.0,117760.0,0.2062683]
[1752246378692,0.61870156,117770.0,117760.0,0.376066]
[1752246378693,1.15905792,117770.0,117760.0,0.376066]
[1752246378894,1.15905792,117770.0,117760.0,0.2062683]
[1752246379089,1.15905792,117770.0,117760.0,0.01697359]
[1752246379294,1.15905792,117770.0,117760.0,0.19154359]
[1752246379492,1.15905792,117770.0,117760.0,0.18954359]
[1752246379697,1.15905792,117770.0,117760.0,0.19154359]
[1752246379999,1.15905792,117770.0,117760.0,0.35834129]
[1752246380397,0.61870156,117770.0,117760.0,0.35641365]
[1752246380696,1.15905792,117770.0,117760.0,0.35641365]
[1752246380896,1.15905792,117770.0,117760.0,0.35643376]
[1752246381098,1.15905792,117770.0,117760.0,0.343266]
[1752246381294,1.15905792,117770.0,117760.0,0.35624178]
[1752246381494,0.61870156,117770.0,117760.0,0.18644408]
[1752246381798,0.61870156,117770.0,117760.0,0.21724408]
[1752246382200,0.61870156,117770.0,117760.0,0.21624408]
[1752246382400,1.15905792,117770.0,117760.0,0.21624408]
[1752246382600,1.15905792,117770.0,117760.0,0.18544408]
[1752246382799,1.15905792,117770.0,117760.0,0.01587408]
[1752246383492,0.61870156,117770.0,117760.0,0.01587408]
[1752246383692,1.15905792,117770.0,117760.0,0.01587408]
[1752246384098,0.54783358,117770.0,117760.0,0.35524178]
[1752246384301,0.54783358,117770.0,117760.0,0.41694178]
[1752246384697,0.37805028,117770.0,117760.0,0.95729814]
[1752246385096,0.37805028,117770.0,117760.0,1.59973814]
[1752246385294,0.37805028,117770.0,117760.0,1.58676236]
[1752246385798,0.01725028,117770.0,117760.0,1.83676236]
[1752246385999,0.3608,117780.0,117770.0,0.1697833]
[1752246386205,0.37809155,117780.0,117770.0,0.94310966]
[1752246386400,0.37809155,117780.0,117770.0,1.11292566]
[1752246387103,0.3618,117780.0,117770.0,1.11292566]
[1752246387899,0.3618,117780.0,117770.0,1.61292566]
[1752246388594,0.37809883,117780.0,117770.0,1.61292566]
[1752246388904,0.37809882,117780.0,117770.0,1.61392566]
[1752246389104,0.37809882,117780.0,117770.0,1.61592566]
[1752246389402,0.54786772,117780.0,117770.0,1.61592566]
[1752246390104,0.54786772,117780.0,117770.0,1.0755693]
[1752246390402,0.54786772,117780.0,117770.0,1.44610966]
[1752246391202,0.54786772,117780.0,117770.0,1.44620966]
[1752246391804,0.54786772,117780.0,117770.0,0.9058533]
[1752246391998,0.54786772,117780.0,117770.0,1.5460133]
[1752246392494,0.54786772,117780.0,117770.0,0.9058533]
[1752246392697,1.08822408,117780.0,117770.0,0.5031]
[1752246392899,1.14992408,117780.0,117770.0,0.5031]
[1752246393204,1.14992408,117780.0,117770.0,0.67267]
[1752246393600,1.14992408,117780.0,117770.0,0.5031]
[1752246393900,1.14992408,117780.0,117770.0,0.6728833]
[1752246394099,1.14992408,117780.0,117770.0,0.5031]
[1752246394602,1.78968408,117780.0,117770.0,0.5031]
[1752246394900,1.78968408,117780.0,117770.0,0.1718833]